bitfinex/quotes_SOLUSD_20230112
["timestamp","ask_amount","ask_price","bid_price","bid_amount"]
[1673552237601,0.96,16.704,16.693,20.0]
[1673552237813,0.96,16.703,16.693,20.0]
[1673552238350,20.0,16.705,16.694,17.0]
[1673552238656,1.92,16.704,16.68,113.66]
[1673552238867,20.0,16.702,16.686,129.8477]
[1673552239059,46.83,16.701,16.686,129.8477]
[1673552239483,20.0,16.7,16.686,109.8477]
[1673552239896,1.92,16.699,16.686,109.8477]
[1673552240329,1.92,16.699,16.68,22.65]
[1673552240524,1.92,16.699,16.68,113.77]
[1673552240732,20.0,16.705,16.68,113.77]
[1673552240733,20.0,16.706,16.68,113.77]
[1673552240946,20.0,16.706,16.682,5.13367]
[1673552241155,44.9,16.705,16.682,5.13367]
[1673552241377,44.9,16.705,16.683,18.92]
[1673552241572,44.9,16.705,16.684,20.0]
[1673552241789,44.9,16.705,16.686,20.0]
[1673552241997,64.89,16.709,16.69,22.82]
[1673552242206,64.89,16.709,16.691,37.0]
[1673552242207,20.0,16.709,16.691,37.0]
[1673552242461,20.0,16.709,16.692,21.92]
[1673552242634,64.89,16.711,16.693,20.0]
[1673552242865,44.89,16.711,16.694,1.92]
[1673552243169,64.87,16.717,16.7,22.67]
[1673552243383,44.87,16.717,16.701,20.0]
[1673552243592,44.86,16.72,16.701,20.0]
[1673552243813,224.26,16.72,16.701,20.0]
[1673552243993,224.26,16.72,16.702,17.0]
[1673552244323,224.26,16.72,16.703,20.0]
[1673552244531,20.0,16.719,16.703,20.0]
[1673552244739,44.87,16.718,16.704,17.0]
[1673552245156,44.87,16.718,16.705,20.0]
[1673552245486,20.0,16.721,16.705,20.0]
[1673552245487,44.86,16.72,16.706,17.0]
[1673552245695,44.86,16.72,16.707,20.0]
[1673552245696,20.0,16.719,16.707,20.0]
[1673552245909,1.92,16.718,16.708,17.0]
[1673552246106,1.92,16.718,16.709,20.0]
[1673552246514,44.86,16.72,16.71,39.76]
[1673552246848,179.4,16.728,16.71,39.76]
[1673552247064,84.84,16.727,16.71,39.76]
[1673552247269,64.84,16.727,16.71,39.76]
[1673552247480,64.84,16.727,16.711,20.0]
[1673552247676,64.84,16.727,16.712,17.0]
[1673552247893,1.92,16.726,16.712,17.0]
[1673552248123,20.0,16.724,16.713,20.0]
[1673552248425,1.92,16.723,16.714,17.0]
[1673552248621,1.92,16.723,16.715,20.0]
[1673552248833,1.92,16.723,16.702,20.0]
[1673552249044,1.92,16.723,16.7,22.91]
[1673552249045,224.26,16.722,16.7,22.91]
[1673552249248,224.26,16.722,16.701,108.2464]
[1673552249249,17.96,16.721,16.701,108.2464]
[1673552249459,64.86,16.72,16.701,108.2464]
[1673552249668,17.0,16.719,16.701,108.2464]
[1673552249884,46.79,16.718,16.701,108.2464]
[1673552250090,20.0,16.717,16.701,108.2464]
[1673552250309,0.96,16.716,16.702,17.0]
[1673552250522,0.96,16.716,16.701,108.2464]
[1673552250523,1.92,16.716,16.703,20.0]
[1673552250844,1.92,16.716,16.702,20.0]
[1673552251052,44.87,16.715,16.702,20.0]
[1673552251268,20.0,16.714,16.695,20.0]
[1673552251461,46.8,16.713,16.695,20.0]
[1673552251682,20.0,16.712,16.695,20.0]
[1673552251996,20.0,16.712,16.692,130.3103]
[1673552251997,1.92,16.711,16.692,110.3103]
[1673552252206,46.81,16.711,16.692,110.3103]
[1673552252424,46.81,16.711,16.693,20.0]
[1673552253474,46.81,16.711,16.694,18.92]
[1673552253892,46.81,16.711,16.695,20.0]
[1673552254087,1.92,16.711,16.696,18.92]
[1673552254832,44.87,16.716,16.701,20.0]
[1673552255032,44.86,16.719,16.702,38.92]
[1673552255240,44.86,16.721,16.703,20.0]
[1673552255444,114.4552,16.722,16.704,18.92]
[1673552255656,20.0,16.721,16.705,20.0]
[1673552255879,20.0,16.721,16.706,17.0]
[1673552256089,64.86,16.721,16.707,20.0]
[1673552256509,20.0,16.721,16.707,20.0]
[1673552256721,20.0,16.721,16.708,17.0]
[1673552257041,20.0,16.721,16.709,20.0]
[1673552257364,1.92,16.72,16.709,20.0]
[1673552257679,1.92,16.72,16.703,20.0]
[1673552257883,1.92,16.72,16.704,17.0]
[1673552258076,1.92,16.72,16.705,20.0]
[1673552258508,1.92,16.72,16.706,17.0]
[1673552258826,1.92,16.72,16.707,20.0]
[1673552259036,18.92,16.72,16.707,20.0]
[1673552259348,18.92,16.72,16.695,20.0]
[1673552259349,20.0,16.717,16.695,20.0]
[1673552259571,242.23,16.716,16.695,20.0]
[1673552259777,20.96,16.715,16.695,20.0]
[1673552260093,44.88,16.714,16.695,20.0]
[1673552260299,1.92,16.713,16.697,0.96]
[1673552260489,1.92,16.713,16.692,113.5125]
[1673552260714,44.88,16.712,16.692,113.5125]
[1673552261031,20.96,16.711,16.693,20.0]
[1673552261225,45.85,16.71,16.693,20.0]
[1673552261437,0.96,16.71,16.693,20.0]
[1673552261644,44.88,16.712,16.693,20.0]
[1673552261859,163.0802,16.716,16.7,22.76]
[1673552262083,118.2102,16.716,16.701,20.0]
[1673552262298,44.86,16.72,16.703,20.0]
[1673552262506,44.86,16.72,16.704,17.0]
[1673552262827,20.0,16.719,16.705,20.0]
[1673552263132,44.86,16.72,16.706,17.0]
[1673552263358,44.86,16.72,16.707,20.0]
[1673552263754,114.4552,16.722,16.705,20.0]
[1673552263755,44.86,16.721,16.705,20.0]
[1673552263964,44.86,16.721,16.706,17.0]
[1673552264176,20.0,16.72,16.707,20.0]
[1673552264394,20.0,16.72,16.708,17.0]
[1673552264707,20.0,16.72,16.709,20.0]
[1673552264920,1.92,16.719,16.709,20.0]
[1673552266386,44.87,16.718,16.709,20.0]
[1673552266712,20.0,16.716,16.701,20.0]
[1673552266908,1.92,16.715,16.702,17.0]
[1673552267126,1.92,16.715,16.703,20.0]
[1673552267345,243.19,16.715,16.677,4.8795]
[1673552267537,243.19,16.715,16.691,128.4857]
[1673552267742,261.94725104,16.715,16.691,128.4857]
[1673552268060,20.0,16.714,16.691,128.4857]
[1673552268278,242.24,16.713,16.691,128.4857]
[1673552268486,359.0403,16.713,16.691,128.4857]
[1673552268693,20.0,16.712,16.691,128.4857]
[1673552268919,46.81,16.711,16.694,37.0]
[1673552269133,20.0,16.71,16.694,37.0]
[1673552269345,1.92,16.709,16.694,37.0]
[1673552269873,1.92,16.709,16.694,17.0]
[1673552271134,1.92,16.709,16.695,20.0]
[1673552271325,44.89,16.711,16.696,17.0]
[1673552271542,115.8403,16.713,16.696,17.0]
[1673552271868,20.0,16.716,16.697,21.92]
[1673552272068,44.87,16.715,16.697,21.92]
[1673552272486,44.87,16.715,16.698,17.0]
[1673552272703,44.88,16.713,16.698,17.0]
[1673552273134,20.0,16.712,16.698,17.0]
[1673552273439,20.0,16.71,16.698,17.0]
[1673552273645,1.92,16.709,16.698,17.0]
[1673552274489,1.92,16.709,16.697,20.0]
[1673552274708,1.92,16.709,16.692,20.0]
[1673552276586,1.92,16.709,16.693,20.0]
[1673552276793,1.92,16.709,16.694,38.92]
[1673552277121,1.92,16.709,16.695,20.0]
[1673552277339,1.92,16.709,16.696,17.0]
[1673552277548,1.92,16.709,16.697,20.0]
[1673552277861,1.92,16.709,16.698,17.0]
[1673552278259,1.92,16.709,16.699,20.0]
[1673552278469,1.92,16.709,16.7,17.0]
[1673552279325,1.92,16.709,16.697,20.0]
[1673552279533,1.92,16.709,16.694,20.0]
[1673552279859,1.92,16.709,16.692,20.0]
[1673552280095,20.0,16.712,16.693,20.0]
[1673552280265,1.92,16.711,16.694,20.0]
[1673552280685,1.92,16.711,16.695,0.96]
[1673552280895,1.92,16.711,16.696,20.96]
[1673552281222,1.92,16.711,16.697,37.96]
[1673552282595,118.4575,16.713,16.7,22.72]
[1673552282803,20.0,16.718,16.701,37.96]
[1673552282998,20.0,16.719,16.702,20.96]
[1673552283204,153.8957,16.721,16.703,20.96]
[1673552283519,109.0357,16.721,16.704,17.96]
[1673552283740,20.0,16.72,16.704,17.96]
[1673552283949,20.0,16.72,16.705,20.0]
[1673552284161,20.0,16.72,16.706,17.0]
[1673552284375,0.96,16.719,16.707,20.0]
[1673552284589,159.3152,16.722,16.707,20.0]
[1673552284899,114.4552,16.722,16.708,18.92]
[1673552285094,114.4552,16.722,16.709,20.0]
[1673552285736,114.4552,16.722,16.71,17.0]
[1673552286390,44.85,16.726,16.71,39.82]
[1673552286604,112.8528,16.728,16.711,21.92]
[1673552286605,44.84,16.727,16.711,21.92]
[1673552286798,290.0173,16.731,16.711,21.92]
[1673552286799,44.83,16.73,16.711,21.92]
[1673552287008,110.6173,16.731,16.713,20.0]
[1673552287234,110.6173,16.731,16.714,20.0]
[1673552287432,110.6173,16.731,16.715,17.0]
[1673552287648,110.6173,16.731,16.716,20.0]
[1673552287649,20.0,16.73,16.716,20.0]
[1673552288165,64.83,16.73,16.716,20.0]
[1673552288383,64.83,16.73,16.717,17.0]
[1673552288384,1.92,16.729,16.717,17.0]
[1673552288785,1.92,16.729,16.718,20.0]
[1673552289017,20.0,16.73,16.719,17.0]
[1673552289220,20.0,16.73,16.718,20.0]
[1673552289428,20.0,16.73,16.713,20.0]
[1673552289836,20.0,16.727,16.7,134.12]
[1673552290052,179.4,16.725,16.703,111.4469]
[1673552290277,179.4,16.723,16.703,111.4469]
[1673552290470,180.0845,16.722,16.703,111.4469]
[1673552290677,21.92,16.721,16.703,111.4469]
[1673552291008,20.0,16.719,16.703,111.4469]
[1673552291219,46.79,16.718,16.704,20.0]
[1673552291425,1.92,16.718,16.704,20.0]
[1673552291643,46.79,16.718,16.704,20.0]
[1673552292274,1.92,16.718,16.705,17.0]
[1673552292590,1.92,16.718,16.706,20.0]
[1673552293203,1.92,16.718,16.704,20.0]
[1673552293421,64.86,16.721,16.704,20.0]
[1673552293833,64.86,16.721,16.705,20.0]
[1673552294044,64.86,16.721,16.706,37.0]
[1673552294769,1.92,16.72,16.706,37.0]
[1673552294980,44.86,16.719,16.706,37.0]
[1673552295206,20.0,16.719,16.706,37.0]
[1673552295417,1.92,16.718,16.706,37.0]
[1673552296688,44.86,16.72,16.706,37.0]
[1673552296888,118.2245,16.722,16.707,21.92]
[1673552297096,64.85,16.724,16.708,20.0]
[1673552297422,20.0,16.724,16.708,20.0]
[1673552297632,64.85,16.724,16.709,17.0]
[1673552297832,44.85,16.724,16.71,43.78]
[1673552298164,64.84,16.727,16.711,20.96]
[1673552298347,20.0,16.727,16.712,17.96]
[1673552298558,20.0,16.727,16.713,20.0]
[1673552298768,20.0,16.727,16.714,17.0]
[1673552299187,20.0,16.727,16.715,20.0]
[1673552299416,1.92,16.726,16.716,17.0]
[1673552299629,1.92,16.726,16.717,20.0]
[1673552300339,1.92,16.726,16.718,17.0]
[1673552300555,1.92,16.726,16.719,20.0]
[1673552301625,1.92,16.726,16.713,20.0]
[1673552301813,1.92,16.726,16.714,17.0]
[1673552302020,1.92,16.726,16.715,20.0]
[1673552302445,1.92,16.726,16.716,17.0]
[1673552302691,1.92,16.726,16.717,20.0]
[1673552303179,1.92,16.726,16.712,20.0]
[1673552303396,44.85,16.725,16.712,20.0]
[1673552303709,20.0,16.724,16.712,20.0]
[1673552303913,18.92,16.723,16.7,42.91]
[1673552304244,224.26,16.722,16.702,119.9668]
[1673552304452,0.96,16.721,16.702,119.9668]
[1673552304670,45.82,16.72,16.703,20.0]
[1673552304860,0.96,16.719,16.703,20.0]
[1673552305070,20.0,16.724,16.703,38.75725104]
[1673552305295,64.84,16.728,16.704,0.96]
[1673552305504,64.84,16.728,16.71,22.82]
[1673552305712,64.84,16.728,16.712,20.0]
[1673552306044,64.84,16.728,16.713,17.0]
[1673552306045,20.0,16.728,16.713,17.0]
[1673552306577,20.0,16.728,16.712,17.0]
[1673552306774,20.0,16.728,16.714,20.0]
[1673552306986,20.0,16.728,16.715,17.0]
[1673552307213,20.0,16.728,16.716,20.0]
[1673552307407,20.0,16.729,16.717,17.0]
[1673552307615,0.96,16.728,16.718,20.0]
[1673552307833,20.0,16.73,16.719,17.0]
[1673552308341,110.6173,16.731,16.719,17.0]
[1673552308557,110.6173,16.731,16.686,127.60537329]
[1673552308558,179.4,16.73,16.7,42.91]
[1673552308782,20.0,16.727,16.701,20.0]
[1673552309101,20.0,16.724,16.701,20.0]
[1673552309417,46.77,16.723,16.701,38.75725104]
[1673552309602,1.92,16.723,16.71,22.82]
[1673552309808,0.96,16.723,16.71,22.82]
[1673552310042,0.96,16.723,16.711,20.0]
[1673552310570,44.84,16.729,16.711,20.0]
[1673552310759,64.83,16.732,16.712,38.92]
[1673552310969,179.4,16.73,16.713,20.0]
[1673552311202,179.4,16.73,16.711,20.0]
[1673552311510,20.0,16.732,16.711,20.0]
[1673552311697,20.0,16.729,16.711,20.0]
[1673552312118,179.4,16.727,16.711,20.0]
[1673552312331,243.17,16.726,16.711,20.0]
[1673552312555,20.0,16.725,16.708,20.0]
[1673552312976,44.85,16.726,16.71,24.24]
[1673552313187,20.0,16.729,16.71,24.24]
[1673552313188,44.84,16.728,16.711,40.0]
[1673552313811,20.0,16.729,16.712,18.92]
[1673552314013,64.83,16.73,16.713,20.0]
[1673552314222,155.4473,16.731,16.714,18.92]
[1673552314445,155.4473,16.731,16.715,20.0]
[1673552314660,155.4473,16.731,16.716,17.0]
[1673552314661,20.0,16.73,16.716,17.0]
[1673552314876,0.96,16.729,16.716,17.0]
[1673552315090,0.96,16.729,16.715,20.0]
[1673552315091,45.8,16.729,16.715,20.0]
[1673552315271,0.96,16.728,16.715,20.0]
[1673552315693,20.96,16.728,16.715,20.0]
[1673552316013,0.96,16.727,16.712,20.0]
[1673552316237,20.0,16.73,16.716,17.0]
[1673552316460,20.0,16.73,16.717,20.0]
[1673552316653,20.0,16.73,16.718,17.0]
[1673552316869,110.6173,16.731,16.718,17.0]
[1673552317304,20.0,16.73,16.719,20.0]
[1673552317617,110.6173,16.731,16.719,20.0]
[1673552318057,20.0,16.73,16.719,20.0]
[1673552318259,20.0,16.73,16.713,20.0]
[1673552318260,20.0,16.73,16.714,20.0]
[1673552318471,20.0,16.73,16.715,17.0]
[1673552318780,0.96,16.729,16.716,20.0]
[1673552318995,1.92,16.729,16.716,20.0]
[1673552319304,20.0,16.728,16.712,20.0]
[1673552319498,20.0,16.728,16.711,20.0]
[1673552319499,44.84,16.727,16.711,20.0]
[1673552319705,1.92,16.726,16.711,20.0]
[1673552319929,0.96,16.726,16.711,20.0]
[1673552320148,155.4473,16.731,16.72,24.32]
[1673552320352,112.2897,16.739,16.72,24.32]
[1673552320569,132.2897,16.739,16.721,20.0]
[1673552321093,64.81,16.738,16.721,20.0]
[1673552321301,132.2897,16.739,16.721,20.0]
[1673552321302,157.0997,16.739,16.722,1.92]
[1673552321508,112.2897,16.739,16.722,21.92]
[1673552321837,112.2897,16.739,16.723,37.0]
[1673552322158,112.2897,16.739,16.724,1.92]
[1673552322333,1.92,16.738,16.724,1.92]
[1673552322759,112.2897,16.739,16.724,1.92]
[1673552322981,114.1554,16.74,16.724,1.92]
[1673552323196,114.1554,16.74,16.724,21.92]
[1673552323399,114.1554,16.74,16.725,37.0]
[1673552323942,44.8,16.742,16.73,24.32]
[1673552324139,44.8,16.744,16.731,20.0]
[1673552324455,44.79,16.746,16.732,17.0]
[1673552324642,44.79,16.746,16.733,20.0]
[1673552324855,20.0,16.756,16.733,20.0]
[1673552324856,44.77,16.755,16.734,18.92]
[1673552325086,158.9484,16.755,16.734,127.8969]
[1673552325275,158.9484,16.755,16.735,20.0]
[1673552325485,158.9484,16.755,16.736,17.0]
[1673552325486,338.3484,16.755,16.736,17.0]
[1673552325704,24.3,16.75,16.737,20.0]
[1673552325912,44.78,16.749,16.735,20.0]
[1673552326237,224.18,16.749,16.735,20.0]
[1673552326562,20.96,16.748,16.735,20.0]
[1673552326869,20.0,16.75,16.736,17.0]
[1673552327083,44.78,16.749,16.737,20.0]
[1673552327709,44.78,16.749,16.734,20.0]
[1673552327907,20.0,16.75,16.735,17.96]
[1673552328129,44.78,16.749,16.736,20.0]
[1673552328553,20.0,16.75,16.736,20.0]
[1673552328965,44.78,16.749,16.733,20.0]
[1673552329175,44.78,16.749,16.734,1.92]
[1673552329414,44.78,16.749,16.74,24.28]
[1673552329719,24.15,16.76,16.74,24.28]
[1673552329720,20.0,16.759,16.741,18.92]
[1673552329930,20.0,16.759,16.742,20.0]
[1673552330125,44.74,16.765,16.743,17.0]
[1673552330333,44.74,16.765,16.743,133.3807]
[1673552330545,44.74,16.765,16.744,18.75725104]
[1673552330744,44.74,16.765,16.745,20.0]
[1673552330960,20.0,16.764,16.745,20.0]
[1673552331183,44.75,16.763,16.746,20.67725104]
[1673552331386,44.75,16.763,16.75,24.15]
[1673552331709,44.74,16.766,16.751,20.0]
[1673552332038,104.5175,16.767,16.752,1.92]
[1673552332221,104.5175,16.767,16.752,20.67725104]
[1673552332441,20.0,16.766,16.752,18.75725104]
[1673552332641,20.0,16.766,16.75,24.15]
[1673552332642,64.74,16.766,16.74,229.6945]
[1673552332980,64.74,16.766,16.745,18.75725104]
[1673552333185,179.4,16.765,16.74,132.1745]
[1673552333385,20.0,16.763,16.74,132.1745]
[1673552333606,44.75,16.762,16.742,18.75725104]
[1673552333790,38.92,16.761,16.742,18.75725104]
[1673552334002,44.75,16.76,16.742,18.75725104]
[1673552334217,44.75,16.76,16.744,18.75725104]
[1673552334754,44.75,16.762,16.745,20.0]
[1673552334942,20.0,16.763,16.745,20.0]
[1673552335158,20.0,16.763,16.746,18.75725104]
[1673552335368,44.74,16.765,16.75,24.32]
[1673552335695,44.74,16.766,16.751,21.92]
[1673552335912,20.0,16.775,16.751,21.92]
[1673552335913,44.72,16.774,16.76,24.15]
[1673552336317,44.93250136,16.759,16.753,20.0]
[1673552336536,20.0,16.773,16.761,18.75725104]
[1673552336863,20.0,16.773,16.762,20.0]
[1673552337055,20.0,16.775,16.763,17.0]
[1673552337257,20.0,16.777,16.764,20.0]
[1673552337258,64.71,16.777,16.764,20.0]
[1673552337497,20.0,16.777,16.765,17.0]
[1673552337808,64.69,16.784,16.77,24.38]
[1673552337809,20.0,16.784,16.77,24.38]
[1673552338325,20.0,16.784,16.766,20.96]
[1673552338326,20.0,16.784,16.766,20.0]
[1673552338525,20.0,16.784,16.76,24.16]
[1673552338526,20.0,16.784,16.761,20.0]
[1673552338728,24.3,16.78,16.762,5.10917]
[1673552338961,64.7,16.779,16.754,135.87705104]
[1673552339154,64.7,16.779,16.756,5.111]
[1673552339366,19.71725104,16.778,16.754,135.87705104]
[1673552339584,65.67,16.777,16.754,117.1198]
[1673552339796,24.38,16.77,16.751,18.75725104]
[1673552339999,44.73,16.769,16.751,5.11253]
[1673552340307,20.0,16.773,16.751,37.51450208]
[1673552340524,20.0,16.773,16.751,130.47075104]
[1673552340732,44.72,16.772,16.751,111.7135]
[1673552340942,44.72,16.772,16.751,130.47075104]
[1673552341370,37.0,16.771,16.751,130.47075104]
[1673552341568,71.03,16.77,16.751,130.47075104]
[1673552341781,71.03,16.77,16.752,20.0]
[1673552342327,20.0,16.769,16.752,20.0]
[1673552342538,44.73,16.768,16.752,20.0]
[1673552342738,18.92,16.767,16.741,20.0]
[1673552342950,18.92,16.767,16.74,237.4451]
[1673552342951,24.3,16.76,16.742,111.7135]
[1673552343159,24.3,16.76,16.731,68.8347]
[1673552343160,45.72,16.759,16.739,18.75725104]
[1673552343489,37.0,16.758,16.739,115.1513]
[1673552343796,37.0,16.758,16.731,88.8347]
[1673552343797,65.72,16.757,16.733,115.1513]
[1673552344013,0.96,16.756,16.74,24.15]
[1673552344226,0.96,16.756,16.74,42.90725104]
[1673552344414,20.96,16.756,16.74,42.90725104]
[1673552344743,44.77,16.755,16.741,18.75725104]
[1673552344958,44.77,16.755,16.733,115.1513]
[1673552344959,45.73,16.755,16.733,115.1513]
[1673552345153,45.73,16.755,16.736,18.75725104]
[1673552345154,17.96,16.754,16.736,18.75725104]
[1673552345361,65.73,16.753,16.736,18.75725104]
[1673552345678,0.96,16.752,16.736,18.75725104]
[1673552345898,45.74,16.751,16.736,18.75725104]
[1673552346221,45.74,16.751,16.733,115.1513]
[1673552346540,62.26,16.75,16.733,115.1513]
[1673552346840,45.74,16.749,16.733,115.1513]
[1673552347058,45.74,16.749,16.732,18.75725104]
[1673552347259,20.0,16.747,16.725,119.6377]
[1673552347474,61.79,16.746,16.725,119.6377]
[1673552347671,0.96,16.745,16.726,20.0]
[1673552347882,45.76,16.744,16.726,38.75725104]
[1673552348101,0.96,16.744,16.727,18.75725104]
[1673552348428,0.96,16.744,16.728,40.0]
[1673552348646,1.92,16.743,16.729,17.0]
[1673552348825,1.92,16.743,16.729,35.75725104]
[1673552349041,1.92,16.743,16.73,18.75725104]
[1673552349252,1.92,16.743,16.731,37.0]
[1673552349684,1.92,16.743,16.72,24.21]
[1673552349903,44.8,16.742,16.726,38.75725104]
[1673552350091,44.8,16.742,16.726,18.75725104]
[1673552350298,44.8,16.744,16.727,20.0]
[1673552350612,64.79,16.745,16.722,68.8347]
[1673552350828,64.79,16.745,16.72,121.38]
[1673552350829,24.38,16.74,16.727,18.75725104]
[1673552351040,44.81,16.739,16.721,110.7428]
[1673552351244,20.0,16.738,16.723,18.75725104]
[1673552351579,20.0,16.738,16.711,130.7428]
[1673552351580,44.82,16.737,16.711,130.7428]
[1673552351892,24.38,16.73,16.715,18.75725104]
[1673552352297,1.92,16.729,16.712,20.0]
[1673552352508,1.92,16.729,16.712,18.75725104]
[1673552352835,1.92,16.729,16.713,18.75725104]
[1673552353028,46.76,16.729,16.714,20.0]
[1673552353239,46.76,16.729,16.713,18.75725104]
[1673552353461,44.83,16.733,16.715,18.75725104]
[1673552354089,113.7128,16.74,16.72,24.28]
[1673552354317,20.0,16.739,16.721,0.96]
[1673552354629,44.81,16.738,16.721,55.75725104]
[1673552354839,44.81,16.738,16.721,37.0]
[1673552355053,44.81,16.738,16.722,18.75725104]
[1673552355287,20.0,16.737,16.722,18.75725104]
[1673552355503,44.82,16.736,16.701,20.0]
[1673552355714,44.82,16.736,16.716,18.75725104]
[1673552356236,64.81,16.739,16.717,20.0]
[1673552356448,0.96,16.738,16.717,20.0]
[1673552356647,0.96,16.737,16.72,24.15]
[1673552356857,0.96,16.736,16.721,17.0]
[1673552357068,0.96,16.736,16.721,35.75725104]
[1673552357280,0.96,16.736,16.722,38.75725104]
[1673552357503,17.96,16.736,16.722,18.75725104]
[1673552357699,44.82,16.735,16.712,20.0]
[1673552357906,18.92,16.734,16.712,38.75725104]
[1673552358114,20.0,16.732,16.71,24.33]
[1673552358334,166.2407,16.731,16.713,37.51450208]
[1673552358533,166.2407,16.731,16.713,18.75725104]
[1673552359068,20.0,16.73,16.713,18.75725104]
[1673552359273,0.96,16.729,16.713,18.75725104]
[1673552359476,1.92,16.729,16.713,18.75725104]
[1673552359700,1.92,16.729,16.714,20.0]
[1673552360017,138.0728,16.74,16.714,20.0]
[1673552360210,113.7128,16.74,16.715,38.75725104]
[1673552360627,64.81,16.739,16.716,57.67725104]
[1673552360845,20.0,16.739,16.716,57.67725104]
[1673552361063,20.0,16.739,16.717,18.75725104]
[1673552361276,1.92,16.738,16.718,37.0]
[1673552361503,18.92,16.738,16.718,37.0]
[1673552361712,64.81,16.739,16.719,18.75725104]
[1673552361929,20.0,16.739,16.72,128.0615]
[1673552362241,133.7128,16.74,16.722,20.0]
[1673552362455,133.7128,16.74,16.723,17.0]
[1673552362456,178.5228,16.74,16.723,17.0]
[1673552362673,133.7128,16.74,16.724,20.0]
[1673552363073,20.0,16.739,16.725,17.0]
[1673552363282,113.7128,16.74,16.726,20.0]
[1673552363493,0.96,16.739,16.727,17.0]
[1673552363716,20.96,16.739,16.728,20.0]
[1673552363910,0.96,16.739,16.729,17.0]
[1673552364126,20.96,16.739,16.729,17.0]
[1673552364645,0.96,16.739,16.729,17.0]
[1673552364858,0.96,16.738,16.729,17.0]
[1673552365076,0.96,16.739,16.729,17.0]
[1673552365485,113.7128,16.74,16.729,17.0]
[1673552366328,44.79,16.746,16.729,17.0]
[1673552366551,64.79,16.748,16.73,40.67725104]
[1673552366746,20.0,16.748,16.73,152.35285104]
[1673552366960,20.0,16.748,16.731,37.67725104]
[1673552367275,20.0,16.748,16.732,40.0]
[1673552367493,20.0,16.748,16.732,58.75725104]
[1673552367817,296.6179,16.749,16.733,35.75725104]
[1673552368013,20.0,16.748,16.734,20.0]